Cogmind - Beta 11.1 @@@ ROGUE MODE // 2022.05.01 @ 17:13:23 Player: Okkudo Result: Destroyed by G-47 Trooper with Particle Gun Performance ------------- Evolutions (2) 1000 Regions Visited (3) 600 Robots Destroyed (26) 130 Value Destroyed (528) 528 Prototype IDs (0) 0 Alien Tech Used (0) 0 Bonus (0) 0 TOTAL SCORE: 2258 Bonus ------- None Cogmind --------- Core Integrity 0/550 Matter 273/300 Energy 100/100 System Corruption 0% Temperature Cool (9) Movement Core (200) Ox3 Location -8/Materials Parts ------- > --- POWER (2) -------- (None) > --- PROPULSION (2) --- (None) > --- UTILITY (5) ------ Medium Storage Unit Advanced Visual Processing Unit Signal Interpreter > --- WEAPON (2) ------- (None) > --- INVENTORY (10) --- Small Storage Unit Transport Network Coupler Datajack Peak State ------------ > --- POWER ------------ Light Ion Engine > --- PROPULSION ------- Aluminum Leg > --- UTILITY ---------- Medium Storage Unit Advanced Visual Processing Unit Signal Interpreter > --- WEAPON ----------- EM Shotgun Small Laser > --- INVENTORY -------- Small Storage Unit Transport Network Coupler EM Shotgun Datajack [Rating: 10] Favorites ----------- Power Ion Engine Engine Ion Engine Propulsion Aluminum Leg Leg Aluminum Leg Utility Medium Storage Unit Device Sensor Array Storage Medium Storage Unit Processor Signal Interpreter Weapon Small Laser Energy Gun Small Laser Ballistic Gun Assault Rifle Launcher Grenade Launcher Build | -11 -10 -9 -8 ------- Run | Scr Mat Mat Mat Slots Evolved 4 | . . 2 2 Power 1 | . . . 1 Propulsion . | . . . . Utility 3 | . . 2 1 Weapon . | . . . . Parts Attached 21 | 6 4 4 7 Power 2 | 1 . . 1 Engine 2 | 1 . . 1 Core . | . . . . Reactor . | . . . . Propulsion 4 | 2 1 . 1 Treads . | . . . . Leg 4 | 2 1 . 1 Wheel . | . . . . Hover . | . . . . Flight . | . . . . Utility 5 | 1 2 1 1 Device 1 | . 1 . . Storage 2 | 1 1 . . Processor 2 | . . 1 1 Hackware . | . . . . Protection . | . . . . Artifact . | . . . . Weapon 10 | 2 1 3 4 Energy Gun 8 | 1 1 2 4 Energy Cannon . | . . . . Ballistic Gun 1 | 1 . . . Ballistic Cannon . | . . . . Launcher 1 | . . 1 . Special Weapon . | . . . . Impact Weapon . | . . . . Slashing Weapon . | . . . . Piercing Weapon . | . . . . Special Melee Weapon . | . . . . Unidentified Prototypes . | . . . . Parts Lost 11 | . 1 5 5 Power 2 | . . 1 1 Propulsion 2 | . . 1 1 Utility 1 | . . 1 . Weapon 6 | . 1 2 3 Highest Loss Streak 5 | . 1 5 3 To Critical Strikes . | . . . . Average Slot Usage (%) 78 | . 85 83 50 Engine 10 | . 14 10 4 Leg 21 | . 28 20 6 Device 4 | . . 10 . Storage 11 | . 14 11 9 Processor 7 | . . 11 16 Energy Gun 15 | . 18 12 13 Ballistic Gun 4 | . 9 . . Launcher 2 | . . 7 . Naked Turns . | . . . . Heaviest Build 22 | 13 19 22 17 Greatest Support 20 | 20 20 20 10 Greatest Overweight (x) 4 | . . 3 4 Average Overweight (x) . | . . . 1 Largest Inventory Capacity 10 | 8 10 10 10 Average Capacity 9 | 7 9 10 10 Most Carried 8 | 5 8 8 7 Average Carried 4 | 1 3 6 3 Final Capacity 10 | 8 10 10 10 Final Carried 8 | 2 7 8 3 Class Distribution -------------------- 100% | Mutant Dominant Class ---------------- Mutant | -10/Materials Mutant | -9/Materials Mutant | -8/Materials Resources | -11 -10 -9 -8 ----------- Run | Scr Mat Mat Mat Matter Collected 509 | 182 194 100 33 Remotely . | . . . . Salvage Created 822 | . 458 267 97 Parts 58 | . 33 18 7 Haulers Intercepted 1 | . 1 . . Recyclers Shooed 1 | . 1 . . Parts Field Recycled . | . . . . Retrieved Matter . | . . . . Parts Self-Destructed . | . . . . Prevented . | . . . . Kills | -11 -10 -9 -8 ------- Run | Scr Mat Mat Mat Combat Hostiles Destroyed 16 | . 7 5 4 Guns 12 | . 7 1 4 AOE 4 | . . 4 . Classes Destroyed 8 | . 7 1 . Worker 3 | . 1 2 . Builder 1 | . 1 . . Hauler 1 | . 1 . . Recycler 3 | . 2 1 . Watcher 2 | . 1 1 . Swarmer 6 | . 3 . 3 Grunt 8 | . 4 3 1 Sentry 2 | . . 2 . Best Kill Streak 5 | . 4 5 4 Combat Bots Only 4 | . 3 2 4 Max Kills in Single Turn 2 | . 2 2 1 Gunslinging . | . . . . Exploded 1 | . . 1 . Melee . | . . . . Uniques/NPCs Destroyed . | . . . . Combat | -11 -10 -9 -8 -------- Run | Scr Mat Mat Mat Damage Taken 1809 | . 265 548 996 Core 725 | . 31 135 559 Absorbed by Shields . | . . . . Core Remaining (%) 84 | 100 87 66 . Volleys Fired 73 | . 40 13 20 Largest 2 | . 2 2 2 Hottest 85 | . 80 80 85 Shots Fired 129 | . 77 17 35 Gun 119 | . 77 7 35 Cannon . | . . . . Launcher 10 | . . 10 . Special . | . . . . Kinetic 24 | . 24 . . Thermal 64 | . 40 4 20 Explosive 10 | . . 10 . Electromagnetic 31 | . 13 3 15 Robot Hit Streak 15 | . 12 15 8 Robot Miss Streak 4 | . 4 1 3 Penetration Max . | . . . . Secondary Targets 2 | . . . 2 Max Gunslinging Chain 1 | . . . 1 Shots Hit Robots 83 | . 44 15 24 Core Hits 47 | . 20 20 7 Critical Kills . | . . . . Critical Parts Destroyed . | . . . . Critical Strikes . | . . . . Melee Attacks . | . . . . Impact . | . . . . Slashing . | . . . . Piercing . | . . . . Sneak Attacks . | . . . . Combat Hostiles . | . . . . Follow-up Attacks . | . . . . Damage Inflicted 1517 | . 581 609 327 Guns 988 | . 581 80 327 Cannons . | . . . . Explosions 521 | . . 521 . Melee . | . . . . Ramming 8 | . . 8 . Kinetic 157 | . 157 . . Thermal 514 | . 296 73 145 Explosive 493 | . . 493 . Electromagnetic 345 | . 128 35 182 Impact . | . . . . Slashing . | . . . . Piercing . | . . . . Highest Corruption 2 | . 2 1 . Average Corruption 1 | . 1 1 . Corruption Purged . | . . . . Corruption Blocked . | . . . . Effects 6 | . 3 3 . Message Errors 3 | . 1 2 . Matter Fused 1 | . 1 . . Energy Discharges 1 | . 1 . . Parts Rejected 1 | . . 1 . Overload Shots . | . . . . Overflow Damage . | . . . . Projectiles . | . . . . Explosions . | . . . . Melee . | . . . . Knockbacks . | . . . . Impact . | . . . . Kinetic . | . . . . Secondary . | . . . . Self-Inflicted Damage 40 | . . 40 . Shots 1 | . . 1 . Rammed . | . . . . Targets Rammed 2 | . . 2 . Kicked 2 | . . 2 . Crushed . | . . . . Highest Temperature 108 | . 108 18 105 Average Temperature 32 | . 34 8 38 Received Heat Transfer 933 | . 60 270 603 Siege Activations . | . . . . Robots Corrupted . | . . . . Combat Hostiles . | . . . . Parts Fried . | . . . . Impact Corruptions . | . . . . Robots Melted . | . . . . Combat Hostiles . | . . . . Parts Melted 1 | . 1 . . Heat Transferred 1100 | . 675 100 325 Parts Sabotaged . | . . . . Parts Stolen . | . . . . Parts Stripped . | . . . . Power Chain Reactions 1 | . . 1 . Missiles Intercepted . | . . . . Alert | -11 -10 -9 -8 ------- Run | Scr Mat Mat Mat Peak Influence 291 | . 131 291 118 Initial 13 | . . 11 13 Average 74 | . 50 116 60 Maximum Alert Level 1 | . . 1 . Low Security (%) 98 | 100 100 94 100 Level 1 1 | . . 5 . Level 2 . | . . . . Level 3 . | . . . . Level 4 . | . . . . Level 5 . | . . . . High Security . | . . . . Max Security . | . . . . Squads Dispatched 3 | . . 1 2 Investigation 2 | . . 1 1 Extermination . | . . . . Reinforcement 1 | . . . 1 Assault . | . . . . Garrison . | . . . . Intercept . | . . . . Searches Triggered . | . . . . Construction Impeded . | . . . . Haulers Reinforced . | . . . . Active Scanning Responses . | . . . . Cargo Convoy Interrupts . | . . . . Stealth | -11 -10 -9 -8 --------- Run | Scr Mat Mat Mat Distress Signals 4 | . 3 1 . Communications Jammed . | . . . . Distress Signals . | . . . . Times Spotted 35 | . 14 9 12 Peak Tracking Total 6 | . 6 4 6 Tactical Retreats 3 | . 1 . 2 Traps | -11 -10 -9 -8 ------- Run | Scr Mat Mat Mat Traps Triggered 3 | . 3 . . Indirectly . | . . . . Trap Hack Attempts . | . . . . Triggered . | . . . . Disarmed . | . . . . Reprogrammed . | . . . . Reused . | . . . . Traps Extracted . | . . . . Installed . | . . . . Triggered . | . . . . Machines | -11 -10 -9 -8 ---------- Run | Scr Mat Mat Mat Machines Disabled 2 | . . 2 . Max in Single Turn 1 | . . 1 . Machines Sabotaged . | . . . . Garrisons Compromised . | . . . . Overloaded Fab Kills . | . . . . Hacking | -11 -10 -9 -8 --------- Run | Scr Mat Mat Mat Machines Accessed 7 | . 4 2 1 Terminals 7 | . 4 2 1 Fabricators . | . . . . Repair Stations . | . . . . Recycling Units . | . . . . Scanalyzers . | . . . . Garrison Access . | . . . . Total Hacks 23 | . 14 7 2 Successful 13 | . 10 3 . Failed 10 | . 4 4 2 Catastrophic 2 | . . 1 1 Database Lockouts . | . . . . Manual 10 | . 6 2 2 Terminals 23 | . 14 7 2 Fabricators . | . . . . Repair Stations . | . . . . Recycling Units . | . . . . Scanalyzers . | . . . . Garrison Access . | . . . . Terminal Hacks 13 | . 10 3 . Level Access Points 1 | . 1 . . Branch Access Points 1 | . 1 . . Terminal Index 1 | . . 1 . Alert Level 1 | . 1 . . Unreport Threat 3 | . 2 1 . Surveillance Status 1 | . 1 . . Assault Status 1 | . 1 . . Hauler Manifests 1 | . 1 . . Zone Layout 3 | . 2 1 . Fabricator Hacks . | . . . . Repair Station Hacks . | . . . . Recycling Unit Hacks . | . . . . Scanalyzer . | . . . . Garrison Access Hacks . | . . . . Unauthorized Hacks . | . . . . Terminals . | . . . . Fabricators . | . . . . Repair Stations . | . . . . Recycling Units . | . . . . Scanalyzers . | . . . . Garrison Access . | . . . . Data Cores Recovered . | . . . . Used . | . . . . Hacking Detections 7 | . 4 2 1 Full Trace Events 4 | . 2 1 1 Feedback Events 2 | . 1 1 . Corruption 2 | . 1 1 . Feedback Blocked . | . . . . Robot Schematics Acquired . | . . . . Robots Built . | . . . . Authchips . | . . . . Time . | . . . . Total Robot Build Rating . | . . . . Part Schematics Acquired . | . . . . Parts Built . | . . . . Authchips . | . . . . Time . | . . . . Total Part Build Rating . | . . . . Parts Repaired . | . . . . Time . | . . . . Parts Recycled . | . . . . Recycled Matter . | . . . . Retrieved Matter . | . . . . Retrieved Components . | . . . . Parts Scanalyzed . | . . . . Part Schematics Acquired . | . . . . Parts Damaged . | . . . . Bothacking | -11 -10 -9 -8 ------------ Run | Scr Mat Mat Mat Used RIF Installer . | . . . . Robots Hacked . | . . . . Non-combat . | . . . . Combat . | . . . . Robot Hacks Applied . | . . . . Relay Couplers Released . | . . . . Fabnet Peak Effective % . | . . . . Robots Rewired . | . . . . Allies Hacked . | . . . . Hacks Repelled . | . . . . Allies | -11 -10 -9 -8 -------- Run | Scr Mat Mat Mat Total Allies . | . . . . Largest Group . | . . . . Highest-Rated Group . | . . . . Highest-Rated Ally . | . . . . Total Orders . | . . . . Ally Attacks . | . . . . Total Damage . | . . . . Kills . | . . . . Allies Corrupted . | . . . . Allies Melted . | . . . . Intel | -11 -10 -9 -8 ------- Run | Scr Mat Mat Mat Robot Analysis Total . | . . . . Derelict Logs Recovered . | . . . . Drone Launches . | . . . . Drone Recoveries . | . . . . Exploration | -11 -10 -9 -8 ------------- Run | Scr Mat Mat Mat Turns Passed 1305 | 46 564 459 236 Spaces Moved 734 | 34 343 288 69 Core 27 | 11 . 7 9 Treads . | . . . . Legs 707 | 23 343 281 60 Wheels . | . . . . Hover . | . . . . Flight . | . . . . Fastest Speed 50 | 50 120 120 190 Average Speed 127 | 97 120 124 192 Slowest Speed 250 | 120 120 200 250 Overloaded Moves . | . . . . Propulsion Burnouts . | . . . . Robots Hopped . | . . . . Cave-ins Triggered . | . . . . Exploration Rate (%) 22 | 2 56 25 8 Regions Visited 3 Branch Regions . Pre-discovered Areas . | . . . . Known Exits Taken 2 | . 1 1 . Unknown Exits Taken 1 | 1 . . . Scrap Searched . | . . . . Spaces Dug . | . . . . Terrain Destroyed 50 | . . 50 . Melee . | . . . . Projectile . | . . . . AOE 50 | . . 50 . Terrain Rammed . | . . . . Walls Destroyed . | . . . . Machines Disabled . | . . . . Actions | -11 -10 -9 -8 --------- Run | Scr Mat Mat Mat Total 973 | 47 418 371 137 Wait 123 | . 24 59 40 Move 731 | 33 342 287 69 Hop . | . . . . Pick Up 20 | 8 7 4 1 Fast Attach . | . . . . Attach 17 | 6 3 2 6 Detach 1 | . 1 . . Swap 4 | . 1 2 1 Drop 2 | . . 2 . Fire 73 | . 40 13 20 Melee . | . . . . Ram . | . . . . Kick 2 | . . 2 . Crush . | . . . . Escape Stasis . | . . . . Rewire . | . . . . Trap . | . . . . Miscellaneous . | . . . . Route ------- -11/Scrapyard -10/Materials (discovered 5 exits: *Mat x3 / *Min x2) -9/Materials -8/Materials History --------- Turn | Location | Event 10 | -11/Scrapyard | Discovered new exit (range 15) 47 | -11/Scrapyard | Entered Materials 145 | -10/Materials | Discovered new exit (range 17) 145 | -10/Materials | Identified exit to Materials 145 | -10/Materials | Identified exit to Mines 323 | -10/Materials | Build established: Mutant 611 | -10/Materials | Entered another Materials area 611 | -9/Materials | Evolved 2 slots: Utility x2 1039 | -9/Materials | Discovered new exit (range 15) 1068 | -9/Materials | Identified exit to Materials 1070 | -9/Materials | Entered another Materials area 1070 | -8/Materials | Evolved 2 slots: Power x1, Utility x1 1087 | -8/Materials | Lost 5 parts (1p1n1u2w) 1286 | -8/Materials | Core integrity fell below 50% 1299 | -8/Materials | Lost 3 parts (1n2w) 1299 | -8/Materials | Core integrity fell below 20% 1306 | -8/Materials | Destroyed by G-47 Trooper with Particle Gun Last Messages --------------- 01184_ Switching to secondary target: G-47 Trooper. 01194_ Lgt. Ion Engine destroyed. 01198_ G-47 Trooper misfires. 01204_ G-47 Trooper destroyed. 01204_ Switching to secondary target: G-47 Trooper. 01204_ EM Shotgun destroyed. 01214_ Acquired 13 matter. 01216_ Acquired 20 matter. 01233_ K-01 Serf collects debris. 01240_ G-47 Trooper IFF system glitched. 01242_ Aluminum Leg destroyed. 01246_ EM Shotgun destroyed. 01256_ G-47 Trooper IFF system glitched. 01268_ Sml. Laser destroyed. 01276_ G-47 Trooper IFF system glitched. 01282_ Critical hit (Burn: +37). 01284_ U-05 Engineer builds a Door. 01284_ Critical hit (Burn: +37). 01295_ U-05 Engineer destroyed. 01298_ Critical hit (Burn: +37). Map ----- +----------------------------------------------------+ | | | | | | | | | | | | | | | | | | | | | | | | | ?????????????######???????????????????????? | | ??????????# ???????????????????????? | | ??????????# """ ???????????????????????? | | ??????????# "R #??????????????????????? | | ??????????# """ #??????????????????????? | | ??????????# #??????????????????????? | | ??????????# """ #??????????????????????? | | ??????????# """ #??????????????????????? | | ??????????# """ #??????????????????????? | | ??????????# #?????#######??????????? | | ??????????#####+########## #??????????? | | ???????????# !% g #??????????? | | ???????????# g #??????????? | | ???????????# @ g #??????????? | | ???????????####+########## #??????????? | | ?????????????# #??## ##??????????? | | ?????????????# """ #???# * ############# | | ?????????????# "T #???# *= [ =% | | ?????????????# """ #???# %[############# | | ?????????????# #???# = #???????????? | | ?????????????# """ #???# #???????????? | | ?????????????# """ #???# #???????????? | | ?????????????# """ #???# #???????????? | | ?????????????# #???# #???????????? | | ?????????????##########???# #???????????? | | ??????????????????????????+ +???????????? | | ??????????????????????????# #???????????? | | ??????????????????????????# #???????????? | | ??????????????????????????# #???????????? | | ??????????????????????????# #???????????? | | ??????????????????????????# #???????????? | | ??????????????????????????# #???????????? | | ??????????????????????????# ????????????? | | ??????????????????????????# ????????????? | | ??????????????????????????? ????????????? | | ??????????????????????????? ????????????? | | ??????????????????????????????????????????? | | ??????????????????????????????????????????? | +----------------------------------------------------+ Best States ------------- Heat Dissipation 31 Energy Generation 10 Energy Capacity 250 Matter Stores 300 Matter Capacity 300 Sight Range 20 Robot Scan Range 14 Terrain Scan Density 10 Evasion (%) 55 Item Schematics ----------------- None Robot Schematics ------------------ None Fabricated ------------ Nothing Alien Tech Used ----------------- None Achievements -------------- None Challenges ------------ None Game ------ Seed CarbideRecoilBarrier Manual? 0 Play Time 00:23:32 Cumulative 29.9 hours Start 2022.05.01 @ 16:49:38 End 2022.05.01 @ 17:13:23 Sessions 1 Manual Loads 0 Difficulty Rogue Special Mode None Game No. 68 Rogue 68 Adventurer 0 Explorer 0 Win Type - Total 0 Types 0/0/0/0/0/0/0/0/0 Lore% 20 Gallery% 21 Achievement% 20 Wizard Run 0 Options --------- ASCII 0 Keyboard 0 Movement Mouse Keybinds 0 Fullscreen 1 Font 12/Smallcaps Map View 83x54 Tactical HUD 1 Map Filters NONE Filters NONE Steam 1 RUN: 379302b3-f9d5-4a92-acfb-4d0717f57d10